{"text_format":"1","workbook":"xlsx","n_sheets":6,"sheets":["Instructions","Application","Appendix A","Appendix B","Appendix C","Appendix D"],"not_rendered":{"charts":0,"images":1,"macros":0,"external_links":3,"defined_names":38,"comments":0,"pivot_tables":0},"unopened":[],"bounds":{"document_bytes":16777216,"sheet_cells":100000,"rows_first":2000,"rows_last":500,"rows_between":2000,"halvings":0,"cell_chars":16384,"cell_head_chars":4096},"cells_cut":0,"cells_raw":0,"read":"whole","date_system":"1900"}

{"sheet":"Instructions","index":0,"n_rows":46,"n_cols":14,"rows_kept":46,"cut":false,"hidden":false,"merged":[[44,0,44,33],[45,1,45,33],[26,0,26,37],[27,0,27,37],[28,0,28,37],[40,1,40,33],[41,1,41,33],[42,0,42,33],[43,0,43,33],[9,0,9,37],[36,0,36,37],[37,0,37,33],[38,0,38,33],[39,0,39,33],[35,0,35,37],[10,0,10,37],[25,0,25,37],[11,0,11,37],[12,0,12,37],[13,0,13,37],[14,0,14,37],[15,0,15,37],[16,0,16,37],[17,0,17,37],[18,0,18,37],[0,0,0,12],[0,13,0,37],[1,0,1,37],[3,0,3,37],[2,0,2,37],[4,0,4,37],[5,0,5,37],[6,0,6,37],[7,0,7,37],[8,0,8,37],[19,0,19,37],[20,0,20,37],[21,0,21,37],[34,0,34,37],[29,0,29,37],[30,0,30,37],[31,0,31,37],[32,0,32,37],[33,0,33,37],[22,0,22,37],[23,0,23,37],[24,0,24,37]]}
[null,null,null,null,null,null,null,null,null,null,null,null,null,"Production of Multimedia Titles\n(General Component)\nVersion : 2023-05-01"]
["Instructions – Application for a Production Work Certificate  "]
["This document indicates the procedure to follow to obtain the necessary production work certificate to claim the tax credit for the production of multimedia titles. This certificate is required for each fiscal year in respect of which the company wishes to claim the tax credit. The company must then claim this tax credit from Revenu Québec by submitting its income tax return (form CO-17) and the appendix (form CO-1029.8.36.TM) by the prescribed deadline."]
["In addition, to be able to claim the tax credit, the producer of the title must first hold a valid initial certificate delivered by Investissement Québec, certifying that the title produced, or to be produced, respects the criteria relating to an eligible multimedia title. The application for an initial certificate must be submitted to Investissement Québec before or simultaneously with the application for the production work certificate. The initial certificate does not have to be renewed."]
["You must provide Investissement Québec with a copy of the title within two months following the date of the initial marketing of the title (date of distribution or of online publication, as the case may be). Documents attesting to the date of the initial marketing of the title are required."]
["We strongly encourage you to consult the detailed fact sheet available on our website before completing this form. Be sure to use the most up-to-date version of the form. In addition, you can consult Chapter V of Schedule A of the Act respecting  the Sectoral parameters of certain fiscal measures, which includes all the sectoral parameters applicable to this measure."]
[]
["APPLICABLE DEADLINES FOR FISCAL YEARS STARTING BEFORE MARCH 27, 2015"]
["Under the Taxation Act, the company has eighteen (18) months to submit an application for a tax credit to Revenu Québec; the application must include the certificates issued by Investissement Québec. This deadline is mandatory but it may be extended by Revenu Québec in certain situations and under certain conditions, in particular when Investissement Québec receives a complete application by the last day of the fifteenth (15th) month following the end of the company's fiscal year, at the latest."]
["We must specify that, in general, Investissement Québec does not grant priority in processing files. Thus, if the application for an eligibility certificate is filed after the end of the fifteenth (15th) month following the end of the company's fiscal year, Investissement Québec cannot guarantee that the company will obtain its certificates before the expiration of the eighteen (18) month period following the end of its fiscal year."]
["Consequently, we strongly recommend that you send the application for a production work certificate to Investissement Québec before the end of the fifteenth (15th) month following the end of the company's fiscal year."]
[]
["APPLICABLE DEADLINES FOR FISCAL YEARS STARTING AFTER MARCH 26, 2015"]
["In the 2015–2016 budget of March 26, 2015, the rules were amended regarding deadlines for submission of an application for a refundable tax credit for fiscal years starting after March 26, 2015."]
[]
["Filing of an application for an annual certificate with Investissement Québec"]
["The corporation must file its application for an annual qualification certificate with Investissement Québec before the expiration of the 15th month following the end of the corporation's fiscal year. If the application is filed after that date but before the expiration of the 18-month period following the end of the corporation's fiscal year, Investissement Québec may, at its discretion, accept the application if it considers that the grounds for the delay are reasonable and justify such a \"late\" application. Consequently, if you are in such a situation, please attach a document setting out the grounds for your delay."]
[]
["Nevertheless, an application for a qualification certificate filed with Investissement Québec after the expiration of the 18-month period will be refused."]
[]
["Submission of documents to Revenu Québec"]
["The corporation must submit its application for a tax credit and its certificates to Revenu Québec by the later of the following dates:\n   - The last day of the 18th month following the end of the corporation's fiscal year in question\n   - The last day of the 3-month period following the date of issuance of the certificates by Investissement Québec."]
[]
["In addition, only complete applications will be processed. Any application received prior to the end of the fiscal year in question will be returned to the applicant. "]
[]
["A complete application* includes:\n   - Duly completed and signed application for production work certificate;\n   - Appendices A, B, C and D, if applicable;\n   - Invoices or contracts if production work is claimed in Appendix B or C."]
["Note that Investissement Québec indicates the date of receipt of the complete application on the certificates. Consequently, it is your responsibility to respect the deadlines prescribed by Revenu Québec, since the company could otherwise lose its right to receive its tax credit for a given year."]
[" * Please note that the documents required for a complete application do not exempt the company from the obligation to provide the documents mentioned in section 4 of the application for a production work certificate."]
[]
["AGREEMENT TO EXCHANGE INFORMATION"]
["On October 7, 2009, Investissement Québec and Revenu Québec signed an agreement entitled \"Entente portant sur l'échange de renseignements nécessaires à l'administration de mesures fiscales ou à l’application d’une loi fiscale\" [agreement on the exchange of information required for the administration of fiscal measures or the enforcement of a tax statute]. Under that agreement, the two organizations can share information required for the exercise of their respective mandates without being obliged to ask for the consent of the individual in question. We disclose information to Revenu Québec solely within the framework of this agreement. The Commission d'accès à l'information du Québec has approved this agreement, after analyzing the nature of the information provided and the reasons for which it is disclosed, and ensuring that appropriate security measures and measures to ensure confidentiality were put in place."]
[]
["REQUIRED FEES"]
["Investissement Québec charges fees for the certificates it issues. For more information on this topic, consult the rates schedule available on the website. "]
[]
["MAILING ADDRESSES AND HOW TO SEND THE APPLICATION FOR A PRODUCTION WORK CERTIFICATE"]
["You must send the signed application by e-mail. For that purpose, please attach the duly signed page of your application in a PDF file. \n\nIn any case, be sure to send the electronic file containing your application (including appendices) and required documents.\n"]
["For companies whose head office is located in one of the following regions:\nBas-Saint-Laurent;\nCapitale-Nationale;\nChaudière-Appalaches;\nCentre-du-Québec;\nCôte-Nord;\nEstrie;\nGaspésie–Îles-de-la-Madeleine;\nLanaudière;\nMauricie;\nMontérégie;\nNord-du-Québec;\nSaguenay–Lac-Saint-Jean."]
[]
["Investissement Québec\nDirection, Mesures fiscales (Québec)\nÉdifice Iberville 1\n1195, avenue Lavigerie, bureau 060\nQuébec (Québec)  G1V 4N3\nFax: 418 528-8480"]
[" -","by email, to the following address: mfquebec@invest-quebec.com;"]
[]
["For companies whose head office is located in one of the following regions:\n\nAbitibi-Témiscamingue;\nLaval;\nLaurentides;\nMontréal;\nOutaouais."]
[]
["Investissement Québec\nDirection, Mesures fiscales (Montréal)\n1001, boulevard Robert-Bourassa, bureau 1000\nMontréal (Québec) H3B 4L4\nFax: 514 864-7933"]
[" -","by email, to the following address: mfmontreal@invest-quebec.com;"]

{"sheet":"Application","index":1,"n_rows":85,"n_cols":34,"rows_kept":85,"cut":false,"hidden":false,"merged":[[0,0,0,12],[0,13,0,33],[1,0,1,33],[4,0,4,33],[3,0,3,33],[5,0,5,33],[6,0,6,33],[7,0,7,7],[7,10,7,17],[7,20,7,27],[7,29,7,33],[2,0,2,33],[8,0,8,7],[8,10,8,17],[8,20,8,27],[8,29,8,33],[9,0,9,33],[10,0,10,33],[11,0,11,33],[12,0,12,25],[12,26,12,33],[13,0,13,33],[14,0,14,33],[15,0,15,25],[15,26,15,33],[16,0,16,25],[16,26,16,33],[17,0,17,33],[18,0,18,33],[19,0,19,25],[19,26,19,33],[20,0,20,25],[20,26,20,33],[21,0,21,33],[22,0,22,33],[23,0,23,25],[23,26,23,33],[24,0,24,25],[24,27,24,32],[25,0,25,25],[25,27,25,32],[26,0,26,25],[26,27,26,33],[40,0,40,33],[41,0,41,33],[27,0,27,25],[27,27,27,32],[28,0,28,33],[29,0,29,33],[30,0,30,25],[30,26,30,33],[31,0,31,25],[31,27,31,32],[32,0,32,25],[32,27,32,32],[42,3,42,33],[43,1,43,33],[42,1,42,2],[44,1,44,2],[46,0,46,33],[50,0,50,33],[38,22,38,33],[33,0,33,25],[33,27,33,33],[34,0,34,25],[34,27,34,32],[35,0,35,32],[36,0,36,33],[45,0,45,33],[37,0,37,7],[37,8,37,13],[37,14,37,15],[37,16,37,21],[37,22,37,33],[38,0,38,7],[38,8,38,13],[38,14,38,15],[38,16,38,21],[39,0,39,33],[58,0,58,33],[61,1,61,30],[63,0,63,33],[44,3,44,33],[51,1,51,30],[53,1,53,30],[54,1,54,30],[55,0,55,33],[56,1,56,30],[57,1,57,30],[59,1,59,30],[52,0,52,33],[62,1,62,30],[47,0,47,33],[48,0,48,33],[49,1,49,30],[60,0,60,33],[69,0,69,33],[64,1,66,30],[67,0,67,33],[71,1,71,30],[72,1,72,33],[73,0,74,0],[87,0,87,33],[68,1,68,30],[70,1,70,30],[83,0,83,20],[84,0,84,20],[84,23,84,33],[83,23,83,33],[73,1,74,33],[75,0,75,33],[76,0,76,33],[77,0,77,33],[78,0,78,33],[79,1,79,33],[80,0,80,33],[81,1,81,33],[82,0,82,33]]}
[null,null,null,null,null,null,null,null,null,null,null,null,null,"Production of Multimedia Titles\n(General Component)\nVersion : 2023-05-01"]
["Application for a Production Work Certificate                                                        "]
["Before completing this form, please read the Instructions tab"]
[]
["1. IDENTIFICATION OF THE COMPANY"]
["Company name"]
[]
["NEQ (Québec enterprise number)",null,null,null,null,null,null,null,null,null,"IQ business number*",null,null,null,null,null,null,null,null,null,"IQ file number*",null,null,null,null,null,null,null,null,"Date of incorporation"]
[]
["*Business or file number assigned by Investissement Québec (IQ) for the tax credit for the production of multimedia titles. Not required for the initial application. In the case of a second application, you will find these numbers on the correspondence received from IQ."]
[]
["Company's website URL"]
[]
[]
["Addresses of all of the establishments in Québec (if more than one establishment, please append the complete list)"]
[]
[]
[]
["Mailing address"]
[]
[]
[]
["Authorized company representative"]
[]
["Representative's title",null,null,null,null,null,null,null,null,null,null,null,null,null,null,null,null,null,null,null,null,null,null,null,null,null,null,"Telephone",null,null,null,null,null,"Ext."]
[]
["Representative's email address",null,null,null,null,null,null,null,null,null,null,null,null,null,null,null,null,null,null,null,null,null,null,null,null,null,null,"Fax"]
[]
[]
["Authorized company agent (if applicable)"]
[]
["Agent's title",null,null,null,null,null,null,null,null,null,null,null,null,null,null,null,null,null,null,null,null,null,null,null,null,null,null,"Telephone",null,null,null,null,null,"Ext."]
[]
["Agent's email address",null,null,null,null,null,null,null,null,null,null,null,null,null,null,null,null,null,null,null,null,null,null,null,null,null,null,"Fax"]
[]
[]
["2. FISCAL YEAR COVERED BY THIS APPLICATION"]
["Fiscal year from:",null,null,null,null,null,null,null,null,null,null,null,null,null,"to:"]
[null,null,null,null,null,null,null,null,"(yyyy-mm-dd)",null,null,null,null,null,null,null,"(yyyy-mm-dd)"]
[]
["3. ADVANCEMENT OF PRODUCTION WORK AND MARKETING EFFORTS"]
["In a separate document to be attached to the application:"]
[null,"A)",null,"Provide a detailed production schedule, including the main stages of the work. "]
[]
[null,"B)",null,"Describe your marketing efforts, past or planned, for the multimedia title in question."]
[]
["If you submit an application for several titles, please provide the information for each one."]
[]
["4. MANDATORY DOCUMENTS TO BE ENCLOSED WITH THIS APPLICATION (check boxes if documents are enclosed)"]
["—  ","Non-consolidated financial statements for the fiscal year in question;1;"]
[]
["—  ","Non-consolidated trial balance for the fiscal year in question;"]
[]
["—  ","Corporate organization chart identifying the shareholders and related or affiliated companies"]
[null,"(the percentage of shares held must be indicated);"]
[]
["—  ","Detailed organization chart indicating hierarchical relations and identifying all the company's employees. "]
[null,"This chart must include both claimed and unclaimed employees;"]
[]
["—  ","Information requested in section 3;"]
[]
["—  ","Document confirming the date of the initial marketing of the title (date of distribution or online publication), "]
[null,"as applicable;"]
[]
["—  ","If applicable, duly signed power of attorney designating an agent to represent the company in its dealings with Investissement Québec. You can use the model available on the Investissement Québec website at: \nwww.investquebec.com/documents/fr/formulaires/Procuration_en.doc"]
["     "]
[]
[]
["—  ","Copies of all invoices and all contracts related to the work indicated in Appendices B and C;"]
[]
["—  ","Copy of the multimedia title (preliminary or final version). Please also provide the access code "]
[null,"to download the title (e.g., games on mobile platforms)."]
[]
[1,"The financial statements may be in draft form provided you send us the final version of the statements as soon as it becomes available."]
[]
[]
["5. DECLARATION OF THE AUTHORIZED COMPANY REPRESENTATIVE OR AGENT"]
["I, the undersigned, duly authorized representative or agent of the company, declare that the information provided in this application, the appendices and the related documents are complete and accurate in all respects."]
["Furthermore, unless otherwise expressly stated, I authorize the Tax Measures Department to share with the other departments of Investissement Québec any information obtained in the course of this application that could prove necessary for the analysis of any application for financing, investment or any other service provided by Investissement Québec."]
[null," I authorize the sharing of information"]
[]
[null," I do not authorize the sharing of information"]
["Finally, I certify that the company has not modified the contents of this application."]
[]
["Signature of the company's authorized representative or agent",null,null,null,null,null,null,null,null,null,null,null,null,null,null,null,null,null,null,null,null,null,null,"Date"]

{"sheet":"Appendix A","index":2,"n_rows":30,"n_cols":28,"rows_kept":30,"cut":false,"hidden":false,"merged":[[0,13,0,14],[1,0,1,14],[2,0,2,14],[3,1,3,4],[3,7,3,9],[3,10,3,11],[3,12,3,13],[9,11,11,11],[9,2,11,2],[9,3,11,3],[4,1,4,4],[5,0,5,13],[6,2,6,3],[6,12,6,13],[8,4,8,5],[8,12,8,14],[9,12,11,12],[30,13,30,14],[29,0,29,9],[25,0,25,14],[27,0,27,14],[28,0,28,9],[23,0,23,14],[24,0,24,14],[9,14,11,14],[31,13,31,14],[32,13,32,14],[33,13,33,14],[34,13,34,14],[35,13,35,14],[36,13,36,14],[37,13,37,14],[38,13,38,14],[39,13,39,14],[40,13,40,14],[41,13,41,14],[42,13,42,14],[43,13,43,14],[44,13,44,14],[45,13,45,14],[46,13,46,14],[47,13,47,14],[48,13,48,14],[49,13,49,14],[50,13,50,14],[51,13,51,14],[52,13,52,14],[53,13,53,14],[54,13,54,14],[55,13,55,14],[56,13,56,14],[57,13,57,14],[58,13,58,14],[59,13,59,14],[60,13,60,14],[61,13,61,14],[62,13,62,14],[63,13,63,14],[64,13,64,14],[65,13,65,14],[66,13,66,14],[67,13,67,14],[68,13,68,14],[69,13,69,14],[70,13,70,14],[71,13,71,14],[72,13,72,14],[73,13,73,14],[74,13,74,14],[75,13,75,14],[76,13,76,14],[77,13,77,14],[78,13,78,14],[79,13,79,14],[80,13,80,14],[81,13,81,14],[82,13,82,14],[83,13,83,14],[84,13,84,14],[85,13,85,14],[86,13,86,14],[87,13,87,14],[88,13,88,14],[89,13,89,14],[90,13,90,14],[91,13,91,14],[92,13,92,14],[93,13,93,14],[94,13,94,14],[95,13,95,14],[96,13,96,14],[97,13,97,14],[98,13,98,14],[99,13,99,14],[100,13,100,14],[101,13,101,14],[102,13,102,14],[103,13,103,14],[104,13,104,14],[105,13,105,14],[106,13,106,14],[107,13,107,14],[108,13,108,14],[109,13,109,14],[110,13,110,14],[111,13,111,14],[112,13,112,14],[113,13,113,14],[114,13,114,14],[115,13,115,14],[116,13,116,14],[117,13,117,14],[118,13,118,14],[119,13,119,14],[120,13,120,14],[121,13,121,14],[122,13,122,14],[123,13,123,14],[124,13,124,14],[125,13,125,14],[126,13,126,14],[127,13,127,14],[128,13,128,14],[129,13,129,14],[130,13,130,14],[131,13,131,14],[132,13,132,14],[133,13,133,14],[134,13,134,14],[135,13,135,14],[136,13,136,14],[137,13,137,14],[138,13,138,14],[139,13,139,14],[140,13,140,14],[141,13,141,14],[142,13,142,14],[143,13,143,14],[144,13,144,14],[145,13,145,14],[146,13,146,14],[147,13,147,14],[148,13,148,14],[149,13,149,14],[150,13,150,14],[151,13,151,14],[152,13,152,14],[153,13,153,14],[154,13,154,14],[155,13,155,14],[156,13,156,14],[157,13,157,14],[158,13,158,14],[159,13,159,14],[160,13,160,14],[161,13,161,14],[162,13,162,14],[163,13,163,14],[164,13,164,14],[165,13,165,14],[166,13,166,14],[167,13,167,14],[168,13,168,14],[169,13,169,14],[170,13,170,14],[171,13,171,14],[172,13,172,14],[173,13,173,14],[174,13,174,14],[175,13,175,14],[176,13,176,14],[177,13,177,14],[178,13,178,14],[179,13,179,14],[180,13,180,14],[181,13,181,14],[182,13,182,14],[183,13,183,14],[184,13,184,14],[185,13,185,14],[186,13,186,14],[187,13,187,14],[188,13,188,14],[189,13,189,14],[190,13,190,14],[191,13,191,14],[192,13,192,14],[193,13,193,14],[194,13,194,14],[195,13,195,14],[196,13,196,14],[197,13,197,14],[198,13,198,14],[199,13,199,14],[200,13,200,14],[201,13,201,14],[202,13,202,14],[203,13,203,14],[204,13,204,14],[205,13,205,14],[206,13,206,14],[207,13,207,14],[208,13,208,14],[209,13,209,14],[210,13,210,14],[211,13,211,14],[212,13,212,14],[213,13,213,14],[214,13,214,14],[215,13,215,14],[216,13,216,14],[217,13,217,14],[218,13,218,14],[219,13,219,14],[220,13,220,14],[221,13,221,14],[222,13,222,14],[223,13,223,14],[224,13,224,14],[225,13,225,14],[226,13,226,14],[227,13,227,14],[228,13,228,14],[229,13,229,14],[230,13,230,14],[231,13,231,14],[232,13,232,14],[233,13,233,14],[234,13,234,14],[235,13,235,14],[236,13,236,14],[237,13,237,14],[238,13,238,14],[239,13,239,14],[240,13,240,14],[241,13,241,14],[242,13,242,14],[243,13,243,14],[244,13,244,14],[245,13,245,14],[246,13,246,14],[247,13,247,14],[248,13,248,14],[249,13,249,14],[250,13,250,14],[251,13,251,14],[252,13,252,14],[253,13,253,14],[254,13,254,14],[255,13,255,14],[256,13,256,14],[257,13,257,14],[258,13,258,14],[259,13,259,14],[260,13,260,14],[261,13,261,14],[262,13,262,14],[263,13,263,14],[264,13,264,14],[265,13,265,14],[266,13,266,14],[267,13,267,14],[268,13,268,14],[269,13,269,14],[270,13,270,14],[271,13,271,14],[272,13,272,14],[273,13,273,14],[274,13,274,14],[275,13,275,14],[276,13,276,14],[277,13,277,14],[278,13,278,14],[279,13,279,14],[280,13,280,14],[281,13,281,14],[282,13,282,14],[283,13,283,14],[284,13,284,14],[285,13,285,14],[286,13,286,14],[287,13,287,14],[288,13,288,14],[289,13,289,14],[290,13,290,14],[291,13,291,14],[292,13,292,14],[293,13,293,14],[294,13,294,14],[295,13,295,14],[296,13,296,14],[297,13,297,14],[298,13,298,14],[299,13,299,14],[300,13,300,14],[301,13,301,14],[302,13,302,14],[303,13,303,14],[304,13,304,14],[305,13,305,14],[306,13,306,14],[307,13,307,14],[308,13,308,14],[309,13,309,14],[310,13,310,14],[311,13,311,14],[312,13,312,14],[313,13,313,14],[314,13,314,14],[315,13,315,14],[316,13,316,14],[317,13,317,14],[318,13,318,14],[319,13,319,14],[320,13,320,14],[321,13,321,14],[322,13,322,14],[323,13,323,14],[324,13,324,14],[325,13,325,14],[326,13,326,14],[327,13,327,14],[328,13,328,14],[329,13,329,14],[330,13,330,14],[331,13,331,14],[332,13,332,14],[333,13,333,14],[334,13,334,14],[335,13,335,14],[336,13,336,14],[337,13,337,14],[338,13,338,14],[339,13,339,14],[340,13,340,14],[341,13,341,14],[342,13,342,14],[343,13,343,14],[344,13,344,14],[345,13,345,14],[346,13,346,14],[347,13,347,14],[348,13,348,14],[349,13,349,14],[350,13,350,14],[351,13,351,14],[352,13,352,14],[353,13,353,14],[354,13,354,14],[355,13,355,14],[356,13,356,14],[357,13,357,14],[358,13,358,14],[359,13,359,14],[360,13,360,14],[361,13,361,14],[362,13,362,14],[363,13,363,14],[364,13,364,14],[365,13,365,14],[366,13,366,14],[367,13,367,14],[368,13,368,14],[369,13,369,14],[370,13,370,14],[371,13,371,14],[372,13,372,14],[373,13,373,14],[374,13,374,14],[375,13,375,14],[376,13,376,14],[377,13,377,14],[378,13,378,14],[379,13,379,14],[380,13,380,14],[381,13,381,14],[382,13,382,14],[383,13,383,14],[384,13,384,14],[385,13,385,14],[386,13,386,14],[387,13,387,14],[388,13,388,14],[389,13,389,14],[390,13,390,14],[391,13,391,14],[392,13,392,14],[393,13,393,14],[394,13,394,14],[395,13,395,14],[396,13,396,14],[397,13,397,14],[398,13,398,14],[399,13,399,14],[400,13,400,14],[401,13,401,14],[402,13,402,14],[403,13,403,14],[404,13,404,14],[405,13,405,14],[406,13,406,14],[407,13,407,14],[408,13,408,14],[409,13,409,14],[410,13,410,14],[411,13,411,14],[412,13,412,14],[413,13,413,14],[414,13,414,14],[415,13,415,14],[416,13,416,14],[417,13,417,14],[418,13,418,14],[419,13,419,14],[420,13,420,14],[421,13,421,14],[422,13,422,14],[423,13,423,14],[424,13,424,14],[425,13,425,14],[426,13,426,14],[427,13,427,14],[428,13,428,14],[429,13,429,14],[430,13,430,14],[431,13,431,14],[432,13,432,14],[433,13,433,14],[434,13,434,14],[435,13,435,14],[436,13,436,14],[437,13,437,14],[438,13,438,14],[439,13,439,14],[440,13,440,14],[441,13,441,14],[442,13,442,14],[443,13,443,14],[444,13,444,14],[445,13,445,14],[446,13,446,14],[447,13,447,14],[448,13,448,14],[449,13,449,14],[450,13,450,14],[451,13,451,14],[452,13,452,14],[453,13,453,14],[454,13,454,14],[455,13,455,14],[456,13,456,14],[457,13,457,14],[458,13,458,14],[459,13,459,14],[460,13,460,14],[461,13,461,14],[462,13,462,14],[463,13,463,14],[464,13,464,14],[465,13,465,14],[466,13,466,14],[467,13,467,14],[468,13,468,14],[469,13,469,14],[470,13,470,14],[471,13,471,14],[472,13,472,14],[473,13,473,14],[474,13,474,14],[475,13,475,14],[476,13,476,14],[477,13,477,14],[478,13,478,14],[479,13,479,14],[480,13,480,14],[481,13,481,14],[482,13,482,14],[483,13,483,14],[484,13,484,14],[485,13,485,14],[486,13,486,14],[487,13,487,14],[488,13,488,14],[489,13,489,14],[490,13,490,14],[491,13,491,14],[492,13,492,14],[493,13,493,14],[494,13,494,14],[495,13,495,14],[496,13,496,14],[497,13,497,14],[498,13,498,14],[499,13,499,14],[500,13,500,14],[501,13,501,14],[502,13,502,14],[503,13,503,14],[504,13,504,14],[505,13,505,14],[506,13,506,14],[507,13,507,14],[508,13,508,14],[509,13,509,14],[510,13,510,14],[511,13,511,14],[512,13,512,14],[513,13,513,14],[514,13,514,14],[515,13,515,14],[516,13,516,14],[517,13,517,14],[518,13,518,14],[519,13,519,14],[520,13,520,14],[521,13,521,14],[522,13,522,14],[523,13,523,14],[524,13,524,14],[525,13,525,14],[526,13,526,14],[527,13,527,14],[528,13,528,14],[529,13,529,14],[530,13,530,14],[531,13,531,14],[532,13,532,14],[533,13,533,14],[534,13,534,14],[535,13,535,14],[536,13,536,14],[537,13,537,14],[538,13,538,14],[539,13,539,14],[540,13,540,14],[541,13,541,14],[542,13,542,14],[543,13,543,14],[544,13,544,14],[545,13,545,14],[546,13,546,14],[547,13,547,14],[548,13,548,14],[549,13,549,14],[550,13,550,14],[551,13,551,14],[552,13,552,14],[553,13,553,14],[554,13,554,14],[555,13,555,14],[556,13,556,14],[557,13,557,14],[558,13,558,14],[559,13,559,14],[560,13,560,14],[561,13,561,14],[562,13,562,14],[563,13,563,14],[564,13,564,14],[565,13,565,14],[566,13,566,14],[567,13,567,14],[568,13,568,14],[569,13,569,14],[570,13,570,14],[571,13,571,14],[572,13,572,14],[573,13,573,14],[574,13,574,14],[575,13,575,14],[576,13,576,14],[577,13,577,14],[578,13,578,14],[579,13,579,14],[580,13,580,14],[581,13,581,14],[582,13,582,14],[583,13,583,14],[584,13,584,14],[585,13,585,14],[586,13,586,14],[587,13,587,14],[588,13,588,14],[589,13,589,14],[590,13,590,14],[591,13,591,14],[592,13,592,14],[593,13,593,14],[594,13,594,14],[595,13,595,14],[596,13,596,14],[597,13,597,14],[598,13,598,14],[599,13,599,14],[600,13,600,14],[601,13,601,14],[602,13,602,14],[603,13,603,14],[604,13,604,14],[605,13,605,14],[606,13,606,14],[607,13,607,14],[608,13,608,14],[609,13,609,14],[610,13,610,14],[611,13,611,14],[612,13,612,14],[613,13,613,14],[614,13,614,14],[615,13,615,14],[616,13,616,14],[617,13,617,14],[618,13,618,14],[619,13,619,14],[620,13,620,14],[621,13,621,14],[622,13,622,14],[623,13,623,14],[624,13,624,14],[625,13,625,14],[626,13,626,14],[627,13,627,14],[628,13,628,14],[629,13,629,14],[630,13,630,14],[631,13,631,14],[632,13,632,14],[633,13,633,14],[634,13,634,14],[635,13,635,14],[636,13,636,14],[637,13,637,14],[638,13,638,14],[639,13,639,14],[640,13,640,14],[641,13,641,14],[642,13,642,14],[643,13,643,14],[644,13,644,14],[645,13,645,14],[646,13,646,14],[647,13,647,14],[648,13,648,14],[649,13,649,14],[650,13,650,14],[651,13,651,14],[652,13,652,14],[653,13,653,14],[654,13,654,14],[655,13,655,14],[656,13,656,14],[657,13,657,14],[658,13,658,14],[659,13,659,14],[660,13,660,14],[661,13,661,14],[662,13,662,14],[663,13,663,14],[664,13,664,14],[665,13,665,14],[666,13,666,14],[667,13,667,14],[668,13,668,14],[669,13,669,14],[670,13,670,14],[671,13,671,14],[672,13,672,14],[673,13,673,14],[674,13,674,14],[675,13,675,14],[676,13,676,14],[677,13,677,14],[678,13,678,14],[679,13,679,14],[680,13,680,14],[681,13,681,14],[682,13,682,14],[683,13,683,14],[684,13,684,14],[685,13,685,14],[686,13,686,14],[687,13,687,14],[688,13,688,14],[689,13,689,14],[690,13,690,14],[691,13,691,14],[692,13,692,14],[693,13,693,14],[694,13,694,14],[695,13,695,14],[696,13,696,14],[697,13,697,14],[698,13,698,14],[699,13,699,14],[700,13,700,14],[701,13,701,14],[702,13,702,14],[703,13,703,14],[704,13,704,14],[705,13,705,14],[706,13,706,14],[707,13,707,14],[708,13,708,14],[709,13,709,14],[710,13,710,14],[711,13,711,14],[712,13,712,14],[713,13,713,14],[714,13,714,14],[715,13,715,14],[716,13,716,14],[717,13,717,14],[718,13,718,14],[719,13,719,14],[720,13,720,14],[721,13,721,14],[722,13,722,14],[723,13,723,14],[724,13,724,14],[725,13,725,14],[726,13,726,14],[727,13,727,14],[728,13,728,14],[729,13,729,14],[730,13,730,14],[731,13,731,14],[732,13,732,14],[733,13,733,14],[734,13,734,14],[735,13,735,14],[736,13,736,14],[737,13,737,14],[738,13,738,14],[739,13,739,14],[740,13,740,14],[741,13,741,14],[742,13,742,14],[743,13,743,14],[744,13,744,14],[745,13,745,14],[746,13,746,14],[747,13,747,14],[748,13,748,14],[749,13,749,14],[750,13,750,14],[751,13,751,14],[752,13,752,14],[753,13,753,14],[754,13,754,14],[755,13,755,14],[756,13,756,14],[757,13,757,14],[758,13,758,14],[759,13,759,14],[760,13,760,14],[761,13,761,14],[762,13,762,14],[763,13,763,14],[764,13,764,14],[765,13,765,14],[766,13,766,14],[767,13,767,14],[768,13,768,14],[769,13,769,14],[770,13,770,14],[771,13,771,14],[772,13,772,14],[773,13,773,14],[774,13,774,14],[775,13,775,14],[776,13,776,14],[777,13,777,14],[778,13,778,14],[779,13,779,14],[780,13,780,14],[781,13,781,14],[782,13,782,14],[783,13,783,14],[784,13,784,14],[785,13,785,14],[786,13,786,14],[787,13,787,14],[788,13,788,14],[789,13,789,14],[790,13,790,14],[791,13,791,14],[792,13,792,14],[793,13,793,14],[794,13,794,14],[795,13,795,14],[796,13,796,14],[797,13,797,14],[798,13,798,14],[799,13,799,14],[800,13,800,14],[801,13,801,14],[802,13,802,14],[803,13,803,14],[804,13,804,14],[805,13,805,14],[806,13,806,14],[807,13,807,14],[808,13,808,14],[809,13,809,14],[810,13,810,14],[811,13,811,14],[812,13,812,14],[813,13,813,14],[814,13,814,14],[815,13,815,14],[816,13,816,14],[817,13,817,14],[818,13,818,14],[819,13,819,14],[820,13,820,14],[821,13,821,14],[822,13,822,14],[823,13,823,14],[824,13,824,14],[825,13,825,14],[826,13,826,14],[827,13,827,14],[828,13,828,14],[829,13,829,14],[830,13,830,14],[831,13,831,14],[832,13,832,14],[833,13,833,14],[834,13,834,14],[835,13,835,14],[836,13,836,14],[837,13,837,14],[838,13,838,14],[839,13,839,14],[840,13,840,14],[841,13,841,14],[842,13,842,14],[843,13,843,14],[844,13,844,14],[845,13,845,14],[846,13,846,14],[847,13,847,14],[848,13,848,14],[849,13,849,14],[850,13,850,14],[851,13,851,14],[852,13,852,14],[853,13,853,14],[854,13,854,14],[855,13,855,14],[856,13,856,14],[857,13,857,14],[858,13,858,14],[859,13,859,14],[860,13,860,14],[861,13,861,14],[862,13,862,14],[863,13,863,14],[864,13,864,14],[865,13,865,14],[866,13,866,14],[867,13,867,14],[868,13,868,14],[869,13,869,14],[870,13,870,14],[871,13,871,14],[872,13,872,14],[873,13,873,14],[874,13,874,14],[875,13,875,14],[876,13,876,14],[877,13,877,14],[878,13,878,14],[879,13,879,14],[880,13,880,14],[881,13,881,14],[882,13,882,14],[883,13,883,14],[884,13,884,14],[885,13,885,14],[886,13,886,14],[887,13,887,14],[888,13,888,14],[889,13,889,14],[890,13,890,14],[891,13,891,14],[892,13,892,14],[893,13,893,14],[894,13,894,14],[895,13,895,14],[896,13,896,14],[897,13,897,14],[898,13,898,14],[899,13,899,14],[900,13,900,14],[901,13,901,14],[902,13,902,14],[903,13,903,14],[904,13,904,14],[905,13,905,14],[906,13,906,14],[907,13,907,14],[908,13,908,14],[909,13,909,14],[910,13,910,14],[911,13,911,14],[912,13,912,14],[913,13,913,14],[914,13,914,14],[915,13,915,14],[916,13,916,14],[917,13,917,14],[918,13,918,14],[919,13,919,14],[920,13,920,14],[921,13,921,14],[922,13,922,14],[923,13,923,14],[924,13,924,14],[925,13,925,14],[926,13,926,14],[927,13,927,14],[928,13,928,14],[929,13,929,14],[930,13,930,14],[931,13,931,14],[932,13,932,14],[933,13,933,14],[934,13,934,14],[935,13,935,14],[936,13,936,14],[937,13,937,14],[938,13,938,14],[939,13,939,14],[940,13,940,14],[941,13,941,14],[942,13,942,14],[943,13,943,14],[944,13,944,14],[945,13,945,14],[946,13,946,14],[947,13,947,14],[948,13,948,14],[949,13,949,14],[950,13,950,14],[951,13,951,14],[952,13,952,14],[953,13,953,14],[954,13,954,14],[955,13,955,14],[956,13,956,14],[957,13,957,14],[958,13,958,14],[959,13,959,14],[960,13,960,14],[961,13,961,14],[962,13,962,14],[963,13,963,14],[964,13,964,14],[965,13,965,14],[966,13,966,14],[967,13,967,14],[968,13,968,14],[969,13,969,14],[970,13,970,14],[971,13,971,14],[972,13,972,14],[973,13,973,14],[974,13,974,14],[975,13,975,14],[976,13,976,14],[977,13,977,14],[978,13,978,14],[979,13,979,14],[980,13,980,14],[981,13,981,14],[982,13,982,14],[983,13,983,14],[984,13,984,14],[985,13,985,14],[986,13,986,14],[987,13,987,14],[988,13,988,14],[989,13,989,14],[990,13,990,14],[991,13,991,14],[992,13,992,14],[993,13,993,14],[994,13,994,14],[995,13,995,14],[996,13,996,14],[997,13,997,14],[998,13,998,14],[999,13,999,14],[1000,13,1000,14],[1001,13,1001,14],[1002,13,1002,14],[1003,13,1003,14],[1004,13,1004,14],[1005,13,1005,14]],"merged_total":1961,"flags":["merged_cut"]}
[null,null,null,null,null,null,null,null,null,null,null,null,null,"Version : 2023-05-01"]
["Appendix A – Application for Production Work Certificate\nEligible production work carried out by employees of the company"]
["(Appendix A is an integral part of the application for a certificate)"]
[null,"Company name",null,null,null,null,null,"NEQ",null,null,"IQ business number",null,"IQ file number"]
[null,{"$f":"IF(Application!A7=\"\",\"\",Application!A7)","v":""},null,null,null,null,null,{"$f":"IF(Application!A9=\"\",\"\",Application!A9)","v":""},null,null,{"$f":"IF(Application!K9=\"\",\"\",Application!K9)","v":""},null,{"$f":"IF(Application!U9=\"\",\"\",Application!U9)","v":""}]
[]
[null,null,"Fiscal year ",null,"from",null,null,"to"]
[null,null,null,null,{"$f":"IF(Application!I38=\"\",\"\",Application!I38)","v":""},null,null,{"$f":"IF(Application!Q38=\"\",\"\",Application!Q38)","v":""}]
[]
["Name of title","File number (if applicable)","Employee name1 \n(as follows: Last name (1 space) First name)","S.I.N.","Job title \n(You must indicate the title in French. For each position, complete Appendix D)2","Hours devoted to work on the title3",null,null,"Total hours worked for the company during the fiscal year in question4","Production period5",null,"Start date of production work \n(yyyy-mm-dd)","Anticipated date of the initial marketing of the title \n(yyyy-mm-dd)","Actual date of the initial marketing of the title \n(yyyy-mm-dd)","Comments6"]
[]
[null,null,null,null,null,"Number of hours","Average hourly rate","Total ($)",null,"Start date \n(yyyy-mm-dd)","End date \n(yyyy-mm-dd)"]
[null,null,null,null,null,null,null,null,null,null,null,null,null,null,null,null,null,null,null,null,null,null,null,null,null,null,null,{"$f":"IF(ISBLANK($F13),AND($E13>=$D13,$E13>=DATE(2008,3,14)),AND($E13>=$D13,$E13>=DATE(2008,3,14),$E13<=$F13))","v":false}]
[null,null,null,null,null,null,null,null,null,null,null,null,null,null,null,null,null,null,null,null,null,null,null,null,null,null,null,false]
[null,null,null,null,null,null,null,null,null,null,null,null,null,null,null,null,null,null,null,null,null,null,null,null,null,null,null,false]
[null,null,null,null,null,null,null,null,null,null,null,null,null,null,null,null,null,null,null,null,null,null,null,null,null,null,null,false]
[null,null,null,null,null,null,null,null,null,null,null,null,null,null,null,null,null,null,null,null,null,null,null,null,null,null,null,false]
[]
[]
[]
[]
[]
[]
["1.Employee name \nWhen an employee carries out production work in respect of more than one title, his/her name must appear for each title concerned.",null,null,null,null,null,null,null,null,null,null,null,null,null,null,null,null,null,null,null,null,null,null,null,null,null,null,false]
["2. Job title \nThe employee's job title must correspond to the title provided in the job description (Appendix D) and on the organization chart.",null,null,null,null,null,null,null,null,null,null,null,null,null,null,null,null,null,null,null,null,null,null,null,null,null,null,false]
["3. Hours devoted to work on the title\nFor each employee covered by this application, indicate the number of hours devoted during the year to all tasks related to the title.\nSpecify the average hourly rate for each employee during the year. \nThe total amount should correspond to the number of hours multiplied by the average hourly rate."]
["4. Total hours worked for the company during the fiscal year in question\nIndicate the total hours the employee spent working for the company during the fiscal year in question. If the employee worked on several titles, indicate the total number of hours for each one."]
["5. Production period \nThe production period during which the employee carried out the production work. This period must be included in the fiscal year covered by the application."]
["It may not start before the start date of production work. It must end as soon as the employment relationship is terminated, even if money is paid to the employee after his/her departure (e.g., vacation pay). Indicate the dates between which the employee carried out the production work."]
["6. Comments\nPlease provide any details that could help us to process your application faster. For example, sick leave for eight weeks, voluntary departure on March 22, etc."]

{"sheet":"Appendix B","index":3,"n_rows":59,"n_cols":25,"rows_kept":59,"cut":false,"hidden":false,"merged":[[6,1,6,3],[28,0,28,12],[20,2,22,2],[20,4,22,4],[25,11,25,12],[20,11,22,12],[24,11,24,12],[11,10,12,12],[11,4,12,4],[11,2,12,2],[11,1,12,1],[7,1,7,12],[10,5,10,6],[13,7,13,9],[14,7,14,9],[15,7,15,9],[11,7,12,9],[33,0,33,12],[29,0,29,12],[30,0,30,12],[31,0,31,12],[32,0,32,12],[11,3,12,3],[20,3,22,3],[13,10,13,12],[20,8,22,8],[20,1,22,1],[27,0,27,12],[11,0,12,0],[20,0,22,0],[23,11,23,12],[14,10,14,12],[0,1,0,3],[0,5,0,12],[5,9,5,10],[5,11,5,12],[1,0,1,12],[2,0,2,12],[3,0,3,12],[4,0,4,12],[5,1,5,2],[40,0,40,7],[20,5,21,7],[20,9,21,10],[15,10,15,12],[18,1,18,12],[39,0,39,12],[34,0,34,12],[16,10,16,12],[37,0,37,12],[38,0,38,13],[36,0,36,12],[35,0,35,12],[16,7,16,9],[11,5,12,6],[13,5,13,6],[14,5,14,6],[15,5,15,6],[16,5,16,6]]}
[null,null,null,null,null,"Version : 2023-05-01"]
["Appendix B—Application for Production Work Certificate \nEligible production work — Non-arm's-length persons or partnerships at the time the subcontract is entered into"]
["(Appendix B is an integral part of the application for a certificate)  "]
["Please use one appendix for each non-arm's-length person or partnership"]
["When a subcontractor submits several invoices, you must describe each invoice in detail in this application (one invoice per line)"]
[null,"Company name",null,null,null,null,"NEQ",null,null,"IQ business number",null,"IQ file number"]
[null,{"$f":"IF(Application!A7=\"\",\"\",Application!A7)","v":""},null,null,null,null,{"$f":"IF(Application!A9=\"\",\"\",Application!A9)","v":""},null,null,{"$f":"IF(Application!K9=\"\",\"\",Application!K9)","v":""},null,{"$f":"IF(Application!U9=\"\",\"\",Application!U9)","v":""}]
[]
[null,null,null,"Fiscal year ","from",null,"to"]
[null,null,null,null,{"$f":"IF(Application!I38=\"\",\"\",Application!I38)","v":""},null,{"$f":"IF(Application!Q38=\"\",\"\",Application!Q38)","v":""}]
[]
["Name of title","Invoice number","Name and address (including postal code) of the non-arm's-length person or partnership","Amount of invoice1","Date of invoice","Percentage attributable to elegible production work2",null,"Services rendered in respect of the eligible title (You must indicate the services rendered in French)3",null,null,"Comments"]
[]
[null,null,null,null,null,null,null,null,null,null,null,null,null,null,null,null,null,null,null,null,null,null,null,null,{"$f":"IF(ISBLANK($G14),AND($F14>=$E14,$F14>=DATE(2008,3,14)),AND($F14>=$E14,$F14>=DATE(2008,3,14),$F14<=$G14))","v":false}]
[null,null,null,null,null,null,null,null,null,null,null,null,null,null,null,null,null,null,null,null,null,null,null,null,{"$f":"IF(ISBLANK($G15),AND($F15>=$E15,$F15>=DATE(2008,3,14)),AND($F15>=$E15,$F15>=DATE(2008,3,14),$F15<=$G15))","v":false}]
[null,null,null,null,null,null,null,null,null,null,null,null,null,null,null,null,null,null,null,null,null,null,null,null,{"$f":"IF(ISBLANK($G16),AND($F16>=$E16,$F16>=DATE(2008,3,14)),AND($F16>=$E16,$F16>=DATE(2008,3,14),$F16<=$G16))","v":false}]
[null,null,null,null,null,null,null,null,null,null,null,null,null,null,null,null,null,null,null,null,null,null,null,null,{"$f":"IF(ISBLANK($G17),AND($F17>=$E17,$F17>=DATE(2008,3,14)),AND($F17>=$E17,$F17>=DATE(2008,3,14),$F17<=$G17))","v":false}]
[]
[null,"Complete the table below only if employees of the person or partnership carried out the production work indicated in the invoice "]
[]
["Name of title","Invoice number4","Identify all employees who carried out eligible production work as follows: Last name (1 space) First name","S.I.N.","Job title \n(You must indicate the title in French. For each position, complete Appendix D)","Hours devoted to work on the title5",null,null,"Total hours worked for the company during the fiscal year in question6","Production period7 ",null,"Comments"]
[]
[null,null,null,null,null,"Number of hours","Average hourly rate","Total ($)",null,"Start date \n(yyyy-mm-dd)","End date \n(yyyy-mm-dd)"]
[null,null,null,null,null,null,null,null,null,null,null,null,null,null,null,null,null,null,null,null,null,null,null,null,{"$f":"IF(ISBLANK($G24),AND($F24>=$E24,$F24>=DATE(2008,3,14)),AND($F24>=$E24,$F24>=DATE(2008,3,14),$F24<=$G24))","v":false}]
[]
[]
[null,null,null,null,null,null,null,null,null,null,null,null,null,null,null,null,null,null,null,null,null,null,null,null,{"$f":"IF(ISBLANK($G35),AND($F35>=$E35,$F35>=DATE(2008,3,14)),AND($F35>=$E35,$F35>=DATE(2008,3,14),$F35<=$G35))","v":false}]
["1. Amount of invoice"]
["Indicate the amount of the invoice, excluding taxes."]
["2.  Percentage attributable to eligible production work"]
["For each contract or invoice, specify the percentage attributable to production work in respect of the multimedia title covered by the application. For example, if the value of the production work is $8,275 for an invoice totalling $10,000, the percentage attributable to production work will be 82.75%."]
["3. Services rendered in respect of the eligible title"]
["Please ensure that the supplier of services indicates which title the production work mentioned in the invoice relates to."]
["4. Invoice number",null,null,null,null,null,null,null,null,null,null,null,null,null,null,null,null,null,null,null,null,null,null,null,{"$f":"IF(ISBLANK(#REF!),AND(#REF!>=#REF!,#REF!>=DATE(2008,3,14)),AND(#REF!>=#REF!,#REF!>=DATE(2008,3,14),#REF!<=#REF!))","v":{"$error":"#REF!"}}]
["If an employee has carried out production work covered by several invoices, please indicate all the invoice numbers."]
["5. Hours devoted to work on the title"]
["Please provide the information requested for each employee claimed. For more information, see Appendix A."]
["6. Total hours worked for the company during the fiscal year in question"]
["Indicate the total hours the employee spent working for the company during the fiscal year in question. If the employee worked on several titles, indicate the total number of hours for each one."]
["7. Production period"]
["The production period during which the production work was carried out. It must be included in the fiscal year in question. For more information, see Appendix A."]
[null,null,null,null,null,null,null,null,null,null,null,null,null,null,null,null,null,null,null,null,null,null,null,null,{"$f":"IF(ISBLANK($G42),AND($F42>=$E42,$F42>=DATE(2008,3,14)),AND($F42>=$E42,$F42>=DATE(2008,3,14),$F42<=$G42))","v":false}]
[null,null,null,null,null,null,null,null,null,null,null,null,null,null,null,null,null,null,null,null,null,null,null,null,false]
[null,null,null,null,null,null,null,null,null,null,null,null,null,null,null,null,null,null,null,null,null,null,null,null,false]
[null,null,null,null,null,null,null,null,null,null,null,null,null,null,null,null,null,null,null,null,null,null,null,null,false]
[null,null,null,null,null,null,null,null,null,null,null,null,null,null,null,null,null,null,null,null,null,null,null,null,false]
[null,null,null,null,null,null,null,null,null,null,null,null,null,null,null,null,null,null,null,null,null,null,null,null,false]
[null,null,null,null,null,null,null,null,null,null,null,null,null,null,null,null,null,null,null,null,null,null,null,null,false]
[null,null,null,null,null,null,null,null,null,null,null,null,null,null,null,null,null,null,null,null,null,null,null,null,false]
[null,null,null,null,null,null,null,null,null,null,null,null,null,null,null,null,null,null,null,null,null,null,null,null,false]
[null,null,null,null,null,null,null,null,null,null,null,null,null,null,null,null,null,null,null,null,null,null,null,null,false]
[null,null,null,null,null,null,null,null,null,null,null,null,null,null,null,null,null,null,null,null,null,null,null,null,false]
[null,null,null,null,null,null,null,null,null,null,null,null,null,null,null,null,null,null,null,null,null,null,null,null,false]
[null,null,null,null,null,null,null,null,null,null,null,null,null,null,null,null,null,null,null,null,null,null,null,null,false]
[null,null,null,null,null,null,null,null,null,null,null,null,null,null,null,null,null,null,null,null,null,null,null,null,false]
[null,null,null,null,null,null,null,null,null,null,null,null,null,null,null,null,null,null,null,null,null,null,null,null,false]
[null,null,null,null,null,null,null,null,null,null,null,null,null,null,null,null,null,null,null,null,null,null,null,null,false]
[null,null,null,null,null,null,null,null,null,null,null,null,null,null,null,null,null,null,null,null,null,null,null,null,false]
[null,null,null,null,null,null,null,null,null,null,null,null,null,null,null,null,null,null,null,null,null,null,null,null,false]

{"sheet":"Appendix C","index":4,"n_rows":37,"n_cols":25,"rows_kept":37,"cut":false,"hidden":false,"merged":[[19,11,19,12],[20,11,20,12],[11,7,12,7],[19,8,19,10],[16,8,16,10],[20,3,20,4],[18,3,18,4],[19,3,19,4],[18,8,18,10],[20,8,20,10],[11,2,12,2],[11,3,12,4],[11,5,12,5],[11,11,12,12],[11,0,12,0],[11,1,12,1],[11,8,12,10],[0,2,0,4],[0,6,0,12],[5,9,5,10],[5,11,5,12],[5,2,5,3],[3,0,3,12],[2,0,2,12],[1,0,1,12],[6,2,6,4],[8,4,8,5],[10,6,10,7],[33,0,33,12],[35,0,35,12],[24,0,24,12],[26,0,26,12],[11,6,12,6],[17,8,17,10],[15,3,15,4],[16,3,16,4],[15,11,15,12],[16,11,16,12],[15,8,15,10],[18,11,18,12],[13,11,13,12],[36,0,36,12],[21,3,21,4],[13,3,13,4],[14,3,14,4],[29,0,29,12],[30,0,30,12],[32,0,32,12],[21,11,21,12],[27,0,27,12],[14,11,14,12],[13,8,13,10],[14,8,14,10],[21,8,21,10],[17,3,17,4],[17,11,17,12],[23,0,23,12]]}
[null,null,null,null,null,null,"Version : 2023-05-01"]
["Appendix C—Application for Production Work Certificate \nEligible production work carried out by arm's-length person or partnerships"]
["(Appendix C is an integral part of the application for a certificate)"]
["If a subcontractor has submitted several invoices, please describe each one in this application (one invoice per line)."]
[]
[null,null,"Company name",null,null,null,null,"NEQ",null,"IQ business number",null,"IQ file number"]
[null,null,{"$f":"IF(Application!A7=\"\",\"\",Application!A7)","v":""},null,null,null,null,{"$f":"IF(Application!A9=\"\",\"\",Application!A9)","v":""},null,{"$f":"IF(Application!K9=\"\",\"\",Application!K9)","v":""},null,{"$f":"IF(Application!U9=\"\",\"\",Application!U9)","v":""}]
[]
[null,null,null,null,"Fiscal year",null,"from",null,null,"to"]
[null,null,null,null,null,null,{"$f":"IF(Application!I38=\"\",\"\",Application!I38)","v":""},null,null,{"$f":"IF(Application!Q38=\"\",\"\",Application!Q38)","v":""}]
[]
["Name of title","File number, if applicable","Invoice number","Name and address (including postal code) of the arm's-length person or partnership",null,"Amount of invoice1","Date of invoice2","Percentage attributable to eligible production work3","Services rendered in respect of the eligible title (You must indicate the services rendered in French)4",null,null,"Comments5"]
[]
[null,null,null,null,null,null,null,null,null,null,null,null,null,null,null,null,null,null,null,null,null,null,null,null,{"$f":"IF(ISBLANK($H14),AND($G14>=$F14,$G14>=DATE(2008,3,14)),AND($G14>=$F14,$G14>=DATE(2008,3,14),$G14<=$H14))","v":false}]
[null,null,null,null,null,null,null,null,null,null,null,null,null,null,null,null,null,null,null,null,null,null,null,null,false]
[null,null,null,null,null,null,null,null,null,null,null,null,null,null,null,null,null,null,null,null,null,null,null,null,false]
[null,null,null,null,null,null,null,null,null,null,null,null,null,null,null,null,null,null,null,null,null,null,null,null,false]
[null,null,null,null,null,null,null,null,null,null,null,null,null,null,null,null,null,null,null,null,null,null,null,null,false]
[]
[]
[]
[null,null,null,null,null,null,null,null,null,null,null,null,null,null,null,null,null,null,null,null,null,null,null,null,false]
[]
["1. Amount of invoice"]
["Indicate the total amount of the invoice, excluding taxes. "]
[]
["2. Date of invoice"]
["The date of the invoice must be included in the fiscal year covered by the application."]
[]
["3. Percentage attributable to eligible production work"]
["For each contract or invoice, specify the percentage attributable to production work in respect of the multimedia title covered by the application. For example, if the value of the production work is $8,275 for an invoice totalling $10,000, the percentage attributable to production work will be 82.75%."]
[]
["4. Services rendered in respect of the eligible title"]
["For each invoice, specify the nature of the services rendered in respect of the eligible title. If several services are covered by a single invoice, please list them."]
[]
["5. Comments"]
["Please provide any details that could help us to process your application faster."]

{"sheet":"Appendix D","index":5,"n_rows":41,"n_cols":42,"rows_kept":41,"cut":false,"hidden":false,"merged":[[0,3,0,4],[1,0,1,4],[2,0,2,4],[3,0,3,4],[4,0,4,4],[5,0,5,4],[8,0,8,2],[6,0,6,4],[9,0,9,2],[10,0,10,1],[10,2,10,4],[11,2,11,4],[12,0,12,4],[13,1,13,4],[17,0,17,1],[17,2,17,3],[18,0,18,1],[18,2,18,3],[14,0,14,4],[15,1,15,4],[19,0,19,1],[19,2,19,3],[20,0,20,1],[20,2,20,3],[21,0,21,1],[21,2,21,3],[22,0,22,1],[22,2,22,3],[23,0,23,1],[23,2,23,3],[24,0,24,1],[24,2,24,3],[25,0,25,1],[25,2,25,3],[26,0,26,1],[26,2,26,3],[27,0,27,1],[27,2,27,3],[28,0,28,1],[28,2,28,3],[31,0,31,1],[31,2,31,3],[32,0,32,1],[32,2,32,3],[29,0,29,1],[29,2,29,3],[30,0,30,1],[30,2,30,3],[33,0,33,1],[33,2,33,3],[34,0,34,1],[34,2,34,3],[35,0,35,1],[35,2,35,3],[39,0,39,1],[39,2,39,3],[40,0,40,4],[36,0,36,1],[36,2,36,3],[37,0,37,1],[37,2,37,3],[38,0,38,1],[38,2,38,3]]}
[null,null,null,"Version : 2023-05-01"]
["Appendix D – Application for Production Work Certificate   "]
["Job description"]
["(Appendix D is an integral part of the application for a certificate)"]
["You must provide a job description specifying the percentage of time devoted to each task completed for all employees mentioned in Appendices A and B, in respect of the multimedia title. Provide only one job description for employees who hold exactly the same position. Please indicate a representative percentage of the time spent on each task for a given position (e.g., do not indicate that one task occupies 100% of the employee's time). Please describe each task in sufficient detail."]
["While processing the application, Investissement Québec may request that timesheets, billing reports or other documentation supporting the job descriptions be provided to justify the positions claimed. For more information, see our \"Guidelines for Task Descriptions on Eligibility Certificate Applications\" available on our website at: "]
["http://www.investquebec.com/documents/qc/fichesdetaillees/NouvellesLignesDirectrices_FiscalMeasures.pdf"]
[]
["Company name",null,null,null,"IQ file number"]
[{"$f":"IF(Application!A7=\"\",\"\",Application!A7)","v":""},null,null,null,{"$f":"IF(Application!U9=\"\",\"\",Application!U9)","v":""}]
["Job title (You must indicate the title in French)",null,"Immediate superior"]
[]
["Incumbent(s)"]
[]
["Justification for position"]
[]
[]
["Detailed description of tasks in relation to hours claimed",null,"Time devoted to \nthese activities (%)",null,"Reserved for IQ"]
[null,null,null,null,null,null,null,null,null,null,null,null,null,null,null,null,null,null,null,null,null,null,null,null,null,null,null,null,null,null,null,null,null,null,null,null,null,null,null,null,null,{"$f":"A19","v":0}]
[null,null,null,null,null,null,null,null,null,null,null,null,null,null,null,null,null,null,null,null,null,null,null,null,null,null,null,null,null,null,null,null,null,null,null,null,null,null,null,null,null,0]
[null,null,null,null,null,null,null,null,null,null,null,null,null,null,null,null,null,null,null,null,null,null,null,null,null,null,null,null,null,null,null,null,null,null,null,null,null,null,null,null,null,0]
[null,null,null,null,null,null,null,null,null,null,null,null,null,null,null,null,null,null,null,null,null,null,null,null,null,null,null,null,null,null,null,null,null,null,null,null,null,null,null,null,null,0]
[null,null,null,null,null,null,null,null,null,null,null,null,null,null,null,null,null,null,null,null,null,null,null,null,null,null,null,null,null,null,null,null,null,null,null,null,null,null,null,null,null,0]
[null,null,null,null,null,null,null,null,null,null,null,null,null,null,null,null,null,null,null,null,null,null,null,null,null,null,null,null,null,null,null,null,null,null,null,null,null,null,null,null,null,0]
[null,null,null,null,null,null,null,null,null,null,null,null,null,null,null,null,null,null,null,null,null,null,null,null,null,null,null,null,null,null,null,null,null,null,null,null,null,null,null,null,null,0]
[null,null,null,null,null,null,null,null,null,null,null,null,null,null,null,null,null,null,null,null,null,null,null,null,null,null,null,null,null,null,null,null,null,null,null,null,null,null,null,null,null,0]
[null,null,null,null,null,null,null,null,null,null,null,null,null,null,null,null,null,null,null,null,null,null,null,null,null,null,null,null,null,null,null,null,null,null,null,null,null,null,null,null,null,0]
[null,null,null,null,null,null,null,null,null,null,null,null,null,null,null,null,null,null,null,null,null,null,null,null,null,null,null,null,null,null,null,null,null,null,null,null,null,null,null,null,null,0]
[null,null,null,null,null,null,null,null,null,null,null,null,null,null,null,null,null,null,null,null,null,null,null,null,null,null,null,null,null,null,null,null,null,null,null,null,null,null,null,null,null,0]
[null,null,null,null,null,null,null,null,null,null,null,null,null,null,null,null,null,null,null,null,null,null,null,null,null,null,null,null,null,null,null,null,null,null,null,null,null,null,null,null,null,0]
[null,null,null,null,null,null,null,null,null,null,null,null,null,null,null,null,null,null,null,null,null,null,null,null,null,null,null,null,null,null,null,null,null,null,null,null,null,null,null,null,null,0]
[null,null,null,null,null,null,null,null,null,null,null,null,null,null,null,null,null,null,null,null,null,null,null,null,null,null,null,null,null,null,null,null,null,null,null,null,null,null,null,null,null,0]
[null,null,null,null,null,null,null,null,null,null,null,null,null,null,null,null,null,null,null,null,null,null,null,null,null,null,null,null,null,null,null,null,null,null,null,null,null,null,null,null,null,0]
[null,null,null,null,null,null,null,null,null,null,null,null,null,null,null,null,null,null,null,null,null,null,null,null,null,null,null,null,null,null,null,null,null,null,null,null,null,null,null,null,null,0]
[null,null,null,null,null,null,null,null,null,null,null,null,null,null,null,null,null,null,null,null,null,null,null,null,null,null,null,null,null,null,null,null,null,null,null,null,null,null,null,null,null,{"$f":"A35","v":0}]
[null,null,null,null,null,null,null,null,null,null,null,null,null,null,null,null,null,null,null,null,null,null,null,null,null,null,null,null,null,null,null,null,null,null,null,null,null,null,null,null,null,{"$f":"A36","v":0}]
[null,null,null,null,null,null,null,null,null,null,null,null,null,null,null,null,null,null,null,null,null,null,null,null,null,null,null,null,null,null,null,null,null,null,null,null,null,null,null,null,null,{"$f":"A37","v":0}]
[null,null,null,null,null,null,null,null,null,null,null,null,null,null,null,null,null,null,null,null,null,null,null,null,null,null,null,null,null,null,null,null,null,null,null,null,null,null,null,null,null,{"$f":"A38","v":0}]
[null,null,null,null,null,null,null,null,null,null,null,null,null,null,null,null,null,null,null,null,null,null,null,null,null,null,null,null,null,null,null,null,null,null,null,null,null,null,null,null,null,0]
["Total (must correspond to 100%):",null,{"$f":"SUM(C19:E39)","v":0},null,null,null,null,null,null,null,null,null,null,null,null,null,null,null,null,null,null,null,null,null,null,null,null,null,null,null,null,null,null,null,null,null,null,null,null,null,null,"Total (must correspond to 100%):"]
["The description of tasks and responsibilities accurately reflects the actual situation and nothing has been added to or deleted from the tasks and responsibilities assumed by the incumbent(s) in connection with the multimedia title during the fiscal year in question."]